Cogmind - Beta 13 @@@ ROGUE MODE // 2024.04.11 @ 22:10:08 // AFD2020/Player2 Player: Demo Result: Destroyed by E1-KNF(z) with Makeshift Spear Performance ------------- Evolutions (1) 500 Regions Visited (4) 800 Robots Destroyed (42) 210 Value Destroyed (668) 668 Prototype IDs (3) 60 Alien Tech Used (0) 0 Bonus (231) 231 TOTAL SCORE: 2469 Bonus ------- High Alert Combat Kills 37 Follower Combat Kills 298 Friendly Fire -104 Cogmind --------- Core Integrity 0/400 Matter 180/300 Energy 21/100 System Corruption 14% Temperature Cool (0) Movement Core (50) Location -7/Zion Parts ------- > --- POWER (1) -------- (None) > --- PROPULSION (2) --- (None) > --- UTILITY (3) ------ (None) > --- WEAPON (3) ------- (None) > --- INVENTORY (5) ---- Light Treads High-capacity Matter Pod (200) Hacking Suite Grenade Launcher Mining Laser Peak State ------------ > --- POWER ------------ Light Ion Engine > --- PROPULSION ------- Wheel Wheel > --- UTILITY ---------- High-capacity Storage Unit Sensor Array Signal Interpreter > --- WEAPON ----------- Particle Gun Wave Gun Mini Grenade Launcher > --- INVENTORY -------- Light Treads Wheel Wheel Armored Wheel Heat Sink Cooling System Huge Storage Unit High-capacity Matter Pod Seismic Detector Hacking Suite Beam Rifle Light EM Pulse Cannon Improved Assault Rifle Light Cannon Grenade Launcher Mining Laser Stasis Trap Stasis Trap Stasis Trap Stasis Trap [Rating: 18] Favorites ----------- Power Light Ion Engine Engine Light Ion Engine Propulsion Wheel Treads Light Treads Wheel Wheel Utility High-capacity Storage Unit Device Sensor Array Storage High-capacity Storage Unit Processor Signal Interpreter Weapon Improved Assault Rifle Energy Gun Beam Rifle Energy Cannon Light EM Pulse Cannon Ballistic Gun Improved Assault Rifle Ballistic Cannon Light Cannon Launcher Mini Grenade Launcher Special Weapon Welding Torch Build | -11 -10 -9 -9 -7 ------- Run | Yrd Mat Mat Min Zio Slots Evolved 2 | . . 2 . . Power . | . . . . . Propulsion . | . . . . . Utility 1 | . . 1 . . Weapon 1 | . . 1 . . Parts Attached 47 | 9 2 14 15 7 Power 3 | 1 . 1 1 . Engine 3 | 1 . 1 1 . Core . | . . . . . Reactor . | . . . . . Propulsion 10 | 3 . 2 4 1 Treads 3 | 1 . 2 . . Leg . | . . . . . Wheel 7 | 2 . . 4 1 Hover . | . . . . . Flight . | . . . . . Utility 10 | 2 1 4 . 3 Device 5 | 1 . 1 . 3 Storage 4 | 1 1 2 . . Processor 1 | . . 1 . . Hackware . | . . . . . Protection . | . . . . . Artifact . | . . . . . Weapon 24 | 3 1 7 10 3 Energy Gun 8 | 3 . . 4 1 Energy Cannon 2 | . . 2 . . Ballistic Gun 5 | . . 4 1 . Ballistic Cannon 3 | . . . 2 1 Launcher 3 | . . 1 2 . Special Weapon 3 | . 1 . 1 1 Impact Weapon . | . . . . . Slashing Weapon . | . . . . . Piercing Weapon . | . . . . . Special Melee Weapon . | . . . . . Unidentified Prototypes 3 | . . 2 1 . Parts Lost 14 | . . 2 3 9 Power 3 | . . 1 1 1 Propulsion 5 | . . 1 1 3 Utility 2 | . . . . 2 Weapon 4 | . . . 1 3 Highest Loss Streak 9 | . . 1 2 9 To Critical Strikes . | . . . . . Average Slot Usage (%) 98 | . 100 96 98 96 Engine 10 | . 14 11 9 10 Treads 3 | . 14 11 . . Wheel 19 | . 14 11 22 20 Device 11 | . 14 11 11 10 Storage 11 | . 14 11 11 11 Processor 9 | . . 8 11 10 Energy Gun 16 | . 24 11 16 22 Energy Cannon 2 | . . 1 3 . Ballistic Gun 8 | . . 19 8 . Ballistic Cannon 1 | . . . 1 1 Launcher 2 | . . . 2 9 Naked Turns 1 | . . . . 1 Heaviest Build 55 | 11 46 52 54 55 Greatest Support 20 | 20 10 10 20 20 Greatest Overweight (x) 5 | 1 4 5 5 2 Average Overweight (x) 2 | . 2 4 3 1 Largest Inventory Capacity 25 | 8 20 25 20 20 Average Capacity 19 | 7 14 20 20 19 Most Carried 20 | 5 9 19 20 20 Average Carried 16 | 1 5 12 19 19 Final Capacity 20 | 8 20 20 20 5 Final Carried 20 | 5 9 19 20 5 Class Distribution -------------------- 56% | Scavenger-Skirmisher 25% | Skirmisher 14% | Mutant 4% | Gunner Dominant Class ---------------- Mutant | -10/Materials Skirmisher | -9/Materials Scavenger-Skirmisher | -9/Mines Scavenger-Skirmisher | -7/Zion Resources | -11 -10 -9 -9 -7 ----------- Run | Yrd Mat Mat Min Zio Matter Collected 1044 | 289 32 359 364 . Remotely . | . . . . . Salvage Created 1135 | 131 49 553 317 85 Parts 95 | 8 8 44 28 7 Haulers Intercepted . | . . . . . Recyclers Shooed . | . . . . . Parts Field Recycled . | . . . . . Retrieved Matter . | . . . . . Parts Self-Destructed . | . . . . . Prevented . | . . . . . Kills | -11 -10 -9 -9 -7 ------- Run | Yrd Mat Mat Min Zio Combat Hostiles Destroyed 20 | . 3 10 6 1 Guns 15 | . 3 8 4 . Cannons 1 | . . . . 1 AOE 4 | . . 2 2 . Classes Destroyed 10 | 2 1 5 1 1 Worker 4 | . . 3 1 . Builder 2 | . . . 2 . Tunneler 11 | 4 . 1 6 . Recycler 2 | 1 . 1 . . Operator 1 | . . 1 . . Watcher 1 | . . 1 . . Swarmer 9 | . 3 2 4 . Grunt 7 | . . 5 2 . Sentry 3 | . . 3 . . Zionite 1 | . . . . 1 Thug 1 | . . . . 1 Best Kill Streak 7 | 4 3 5 7 2 Combat Bots Only 3 | . 3 3 3 1 Max Kills in Single Turn 3 | 1 1 3 2 1 Gunslinging . | . . . . . Exploded 2 | . . 2 2 . Melee . | . . . . . Uniques/NPCs Destroyed . | . . . . . Combat | -11 -10 -9 -9 -7 -------- Run | Yrd Mat Mat Min Zio Hostile Shots Fired 107 | . 17 35 29 26 Missed 27 | . 5 9 5 8 Damage Taken 1287 | . 129 327 287 544 Core 306 | . 11 68 63 164 Absorbed by Shields . | . . . . . Core Remaining (%) 95 | 100 91 . . . Volleys Fired 111 | 10 8 28 56 9 Largest 3 | 2 2 3 3 3 Hottest 181 | 80 80 119 144 181 Shots Fired 233 | 20 16 78 103 16 Gun 183 | 20 14 75 67 7 Cannon 26 | . . 1 17 8 Launcher 11 | . . 2 9 . Special 13 | . 2 . 10 1 Kinetic 97 | . . 51 38 8 Thermal 122 | 20 16 24 54 8 Explosive 11 | . . 2 9 . Electromagnetic 3 | . . 1 2 . Robot Hit Streak 10 | 5 7 10 9 7 Robot Miss Streak 5 | 4 2 5 5 5 Penetration Max . | . . . . . Secondary Targets 2 | . 1 1 . . Max Gunslinging Chain 1 | . 1 1 . . Shots Hit Robots 102 | 9 9 49 27 8 Core Hits 57 | 6 6 26 17 2 Critical Kills . | . . . . . Critical Parts Destroyed . | . . . . . Critical Strikes 1 | . . . 1 . Burn 1 | . . . 1 . Melee Attacks . | . . . . . Impact . | . . . . . Slashing . | . . . . . Piercing . | . . . . . Sneak Attacks . | . . . . . Combat Hostiles . | . . . . . Follow-up Attacks . | . . . . . Damage Inflicted 1750 | 121 118 764 632 115 Guns 1356 | 121 98 618 495 24 Cannons 91 | . . . . 91 Explosions 259 | . . 146 113 . Melee . | . . . . . Ramming 16 | . 16 . . . Kinetic 676 | . . 432 153 91 Thermal 799 | 121 102 186 366 24 Explosive 259 | . . 146 113 . Electromagnetic . | . . . . . Impact . | . . . . . Slashing . | . . . . . Piercing . | . . . . . Highest Corruption 14 | . . . . 14 Average Corruption 7 | . . . . 7 Corruption Purged . | . . . . . Corruption Blocked . | . . . . . Overload Shots . | . . . . . Overflow Damage 20 | . . 11 9 . Projectiles . | . . . . . Explosions 20 | . . 11 9 . Melee . | . . . . . Knockbacks 1 | . . . . 1 Impact . | . . . . . Kinetic 1 | . . . . 1 Secondary . | . . . . . Self-Inflicted Damage 78 | . 7 . 71 . Shots 3 | . . . 3 . Rammed 3 | . 3 . . . Targets Rammed 3 | . 3 . . . Kicked . | . . . . . Crushed . | . . . . . Highest Temperature 258 | 24 72 48 243 258 Average Temperature 52 | 10 27 16 74 87 Received Heat Transfer 231 | . 39 93 36 63 Effects 1 | . . . . 1 Energy Bleed 1 | . . . . 1 Siege Activations . | . . . . . Robots Corrupted . | . . . . . Combat Hostiles . | . . . . . Parts Fried . | . . . . . Impact Corruptions . | . . . . . Robots Melted . | . . . . . Combat Hostiles . | . . . . . Parts Melted 2 | 1 . . . 1 Heat Transferred 1925 | 275 275 400 938 37 Parts Sabotaged . | . . . . . Parts Stolen . | . . . . . Parts Stripped . | . . . . . Power Chain Reactions . | . . . . . Alert | -11 -10 -9 -9 -7 ------- Run | Yrd Mat Mat Min Zio Peak Influence 738 | 25 237 738 214 . Initial 213 | . 16 100 213 . Average 147 | 10 126 332 106 . Maximum Alert Level 3 | . 1 3 1 . Low Security (%) 70 | 100 90 49 70 . Level 1 22 | . 9 12 29 . Level 2 6 | . . 34 . . Level 3 . | . . 4 . . Level 4 . | . . . . . Level 5 . | . . . . . High Security . | . . . . . Max Security . | . . . . . Squads Dispatched 5 | . 2 3 . . Investigation 3 | . 2 1 . . Extermination . | . . . . . Reinforcement 2 | . . 2 . . Assault . | . . . . . Garrison . | . . . . . Intercept . | . . . . . Searches Triggered . | . . . . . Construction Impeded . | . . . . . Haulers Reinforced . | . . . . . Active Scanning Responses . | . . . . . Cargo Convoy Interrupts . | . . . . . Stealth | -11 -10 -9 -9 -7 --------- Run | Yrd Mat Mat Min Zio Distress Signals 2 | . . 2 . . Communications Jammed . | . . . . . Distress Signals . | . . . . . Times Spotted 53 | . 10 22 9 12 Peak Tracking Total 7 | . 3 5 3 7 Tactical Retreats . | . . . . . Traps | -11 -10 -9 -9 -7 ------- Run | Yrd Mat Mat Min Zio Traps Triggered 2 | . 2 . . . Indirectly . | . . . . . Trap Hack Attempts . | . . . . . Triggered . | . . . . . Disarmed . | . . . . . Reprogrammed . | . . . . . Reused . | . . . . . Traps Extracted . | . . . . . Installed . | . . . . . Triggered . | . . . . . Most Traps Carried 4 | . . . 4 4 Machines | -11 -10 -9 -9 -7 ---------- Run | Yrd Mat Mat Min Zio Machines Disabled 1 | . . . 1 . Max in Single Turn 1 | . . . 1 . Machines Repaired . | . . . . . Machines Dismantled . | . . . . . Machines Sabotaged . | . . . . . Overloaded Fab Kills . | . . . . . Hacking | -11 -10 -9 -9 -7 --------- Run | Yrd Mat Mat Min Zio Machines Accessed 6 | . 5 1 . . Terminals 6 | . 5 1 . . Fabricators . | . . . . . Repair Stations . | . . . . . Recycling Units . | . . . . . Scanalyzers . | . . . . . Garrison Access . | . . . . . Total Hacks 17 | . 14 3 . . Successful 5 | . 4 1 . . Failed 11 | . 9 2 . . Catastrophic 3 | . 2 1 . . Database Lockouts 1 | . 1 . . . Manual 15 | . 11 3 . 1 Terminals 17 | . 14 3 . . Fabricators . | . . . . . Repair Stations . | . . . . . Recycling Units . | . . . . . Scanalyzers . | . . . . . Garrison Access . | . . . . . Terminal Hacks 5 | . 4 1 . . Part Schematic 2 | . 1 1 . . Robot Analysis 2 | . 2 . . . Alert Level 1 | . 1 . . . Fabricator Hacks . | . . . . . Repair Station Hacks . | . . . . . Recycling Unit Hacks . | . . . . . Scanalyzer . | . . . . . Garrison Access Hacks . | . . . . . Unauthorized Hacks . | . . . . . Terminals . | . . . . . Fabricators . | . . . . . Repair Stations . | . . . . . Recycling Units . | . . . . . Scanalyzers . | . . . . . Garrison Access . | . . . . . Data Cores Recovered . | . . . . . Used . | . . . . . Hacking Detections 6 | . 5 1 . . Full Trace Events . | . . . . . Feedback Events . | . . . . . Feedback Blocked . | . . . . . Robot Schematics Acquired . | . . . . . Robots Built . | . . . . . Authchips . | . . . . . Time . | . . . . . Total Robot Build Rating . | . . . . . Part Schematics Acquired 3 | . 1 1 . 1 Parts Built . | . . . . . Authchips . | . . . . . Time . | . . . . . Total Part Build Rating . | . . . . . Parts Repaired . | . . . . . Time . | . . . . . Parts Recycled . | . . . . . Recycled Matter . | . . . . . Retrieved Matter . | . . . . . Retrieved Components . | . . . . . Parts Scanalyzed . | . . . . . Part Schematics Acquired . | . . . . . Parts Damaged . | . . . . . Bothacking | -11 -10 -9 -9 -7 ------------ Run | Yrd Mat Mat Min Zio Used RIF Installer . | . . . . . Robots Hacked . | . . . . . Non-combat . | . . . . . Combat . | . . . . . Robot Hacks Applied . | . . . . . Relay Couplers Released . | . . . . . Fabnet Peak Effective % . | . . . . . Robots Rewired . | . . . . . Allies Hacked . | . . . . . Hacks Repelled . | . . . . . Allies | -11 -10 -9 -9 -7 -------- Run | Yrd Mat Mat Min Zio Total Allies 3 | . 1 . 2 . Largest Group 3 | . 1 1 3 3 Highest-Rated Group 107 | . 55 66 107 107 Highest-Rated Ally 69 | . 55 66 66 69 Total Orders . | . . . . . Ally Attacks 67 | . 14 21 17 15 Total Damage 1200 | . 107 540 204 349 Kills 24 | . 3 9 7 5 Allies Corrupted . | . . . . . Allies Melted . | . . . . . Intel | -11 -10 -9 -9 -7 ------- Run | Yrd Mat Mat Min Zio Robot Analysis Total 2 | . 2 . . . Derelict Logs Recovered 2 | . . . 2 . Drone Launches . | . . . . . Drone Recoveries . | . . . . . Exploration | -11 -10 -9 -9 -7 ------------- Run | Yrd Mat Mat Min Zio Turns Passed 2576 | 88 255 425 1506 302 Spaces Moved 1361 | 51 168 203 775 164 Core 6 | 4 . . . 2 Treads . | . . . . . Legs . | . . . . . Wheels 1355 | 47 168 203 775 162 Hover . | . . . . . Flight . | . . . . . Fastest Speed 50 | 50 95 140 110 50 Average Speed 123 | 80 118 142 125 109 Slowest Speed 155 | 95 140 155 155 150 Overloaded Moves . | . . . . . Propulsion Burnouts . | . . . . . Robots Hopped . | . . . . . Cave-ins Triggered . | . . . . . Exploration Rate (%) 36 | 4 32 25 100 21 Regions Visited 4 Branch Regions 2 Pre-discovered Areas 2 | . . . . 2 Known Exits Taken 2 | . . 1 1 . Unknown Exits Taken 2 | 1 1 . . . Scrap Searched 1 | . . . 1 . Spaces Dug 61 | . . . 61 . Terrain Destroyed 102 | . . 13 89 . Melee . | . . . . . Projectile . | . . . . . AOE 102 | . . 13 89 . Terrain Rammed . | . . . . . Walls Destroyed . | . . . . . Machines Disabled . | . . . . . Actions | -11 -10 -9 -9 -7 --------- Run | Yrd Mat Mat Min Zio Total 2042 | 75 207 280 1210 270 Wait 459 | . 20 20 332 87 Move 1358 | 50 168 202 774 164 Hop . | . . . . . Pick Up 37 | 4 4 12 17 . Fast Attach 16 | 8 1 4 2 1 Attach 9 | 1 . 2 4 2 Detach 3 | 2 1 . . . Swap 22 | . 1 8 9 4 Drop 25 | . 2 4 16 3 Fire 111 | 10 8 28 56 9 Melee . | . . . . . Ram 2 | . 2 . . . Kick . | . . . . . Crush . | . . . . . Escape Stasis . | . . . . . Rewire . | . . . . . Trap . | . . . . . Miscellaneous . | . . . . . Route ------- -11/Scrapyard -10/Materials -9/Materials -9/Mines (discovered 3 exits: *Mat x2 / *Zio) -7/Zion History --------- Turn | Location | Event 36 | -11/Scrapyard | Discovered new exit (range 14) 89 | -11/Scrapyard | Entered Materials 271 | -10/Materials | Central database locked down 300 | -10/Materials | Build established: Mutant 333 | -10/Materials | Discovered new exit (range 6) 344 | -10/Materials | Entered another Materials area 344 | -9/Materials | Evolved 2 slots: Utility x1, Weapon x1 746 | -9/Materials | Discovered new exit (range 11) 750 | -9/Materials | Build established: Skirmisher 768 | -9/Materials | Identified exit to Mines 769 | -9/Materials | Entered Mines 1270 | -9/Mines | Excavation squad dispatched 1270 | -9/Mines | A large section of the Mines collapsed 1355 | -9/Mines | Build established: Scavenger-Skirmisher 1398 | -9/Mines | Discovered new exit (range 13) 1531 | -9/Mines | Found a hidden stash of uninstalled traps 1547 | -9/Mines | Discovered new exit (range 16) 1627 | -9/Mines | Identified exit to Materials 1730 | -9/Mines | A Derelict revealed a hidden shortcut to a safe place 1737 | -9/Mines | Identified exit to Zion 2275 | -9/Mines | Entered Zion 2275 | -7/Zion | Accompanied by 2 allies 2325 | -7/Zion | Led the pair of lost Derelicts to a safe place 2342 | -7/Zion | Received a visual enhancement algorithm 2458 | -7/Zion | Learned location of Warlord (-4) 2521 | -7/Zion | Learned location of Data Miner (-6) 2537 | -7/Zion | Attacked by Zionites 2554 | -7/Zion | Core integrity fell below 50% 2573 | -7/Zion | Core integrity fell below 20% 2577 | -7/Zion | System corruption reached 10% 2577 | -7/Zion | Destroyed by E1-KNF(z) with Makeshift Spear Last Messages --------------- 02571_ Y0-C04(z) heat short circuits Deuterium Engine. 02571_ Y0-C04(z) overheating. 02572_ E1-KNF(z) knocked back. 02572_ Y0-C04(z) overheating. 02573_ J7-Y57(z) destroyed. 02573_ Y0-C04(z) overheating. 02574_ Y0-C04(z) heat damages core (-3). 02574_ Lgt. Cannon destroyed. 02574_ System corrupted by crushing effect (+2). 02574_ Y0-C04(z) overheating. 02575_ Dropped Hcp. Storage Unit. 02575_ Y0-C04(z) overheating. 02576_ Y0-C04(z) heat damages core (-2). 02576_ Y0-C04(z) suffers critical hit (Destroy). 02576_ Particle Gun destroyed. 02576_ Wave Gun destroyed. 02576_ System corrupted by crushing effect (+2). 02576_ System corrupted by crushing effect (+3). 02576_ Y0-C04(z) overheating. Map ----- +----------------------------------------------------+ | ?????????????????????????????????????????????????? | | ?????????????????????????????????????????????????? | | ?????????????????????????????????????????????????? | | ?????????????????????????????????????????????????? | | ?????????????????????????????????????????????????? | | ?????????????????????????????????????????????????? | | ?????????????????????????????????????????????????? | | ?????????????????????????????????????????????????? | | ?????????????????????????????????????????????????? | | ?????????????????????????????????????????????????? | | ?????????????????????????????????????????????????? | | ?????????????? ?????????????????????????????????? | | ??????????????" ?? "???????????????????????????## | | ?????????????"" """""#?????????????????????????? | | ???????????? "" """""""????????????????????????? | | ???????????? "" ""###???????????????????????# | | ???????????? """###?????????????????????? | | ????????????? """"??????????????????????? | | ????????????? ##?????????????????????? | | ??????? ? "" $ $ $ $ "#?????????????????????? | | ??????? """ $ $ $ $ ##?????????????????????? | | ??????" """ $ $ $ $ "#?????????????????????# | | ???????" "" #?????????????????????## | | ??????"" $ $ <